[Event "Titled Tuesday Blitz November 29 Early 2022"]
[White "Aaditya Dhingra"]
[Black "Gabrielian, Artur"]
[WhiteFideId "25678191"]
[BlackFideId "4131002"]
[WhiteElo "2054"]
[BlackElo "2432"]
[Result "1/2-1/2"]
[Round "05"]
[TimeControl "180+1"]
[Date "2022.11.30"]
[WhiteClock "0:00:04"]
[BlackClock "0:00:06"]

1. e4 {[%clk 0:02:51]}  c5 {[%clk 0:02:58]} 2. Nf3 {[%clk 0:02:48]}  d6 {[%clk 0:02:59]} 3. Bb5+ {[%clk 0:02:45]}  Nd7 {[%clk 0:02:58]} 4. O-O {[%clk 0:02:43]}  a6 {[%clk 0:02:58]} 5. Bd3 {[%clk 0:02:41]}  Ngf6 {[%clk 0:02:58]} 6. Re1 {[%clk 0:02:36]}  e6 {[%clk 0:02:56]} 7. c3 {[%clk 0:02:35]}  b5 {[%clk 0:02:56]} 8. a4 {[%clk 0:02:30]}  c4 {[%clk 0:02:55]} 9. Bc2 {[%clk 0:02:24]}  Bb7 {[%clk 0:02:54]} 10. Na3 {[%clk 0:02:19]}  Be7 {[%clk 0:02:52]} 11. Rb1 {[%clk 0:02:16]}  Nc5 {[%clk 0:02:37]} 12. axb5 {[%clk 0:02:07]}  axb5 {[%clk 0:02:36]} 13. Nxb5 {[%clk 0:02:05]}  Ncxe4 {[%clk 0:02:24]} 14. d3 {[%clk 0:02:01]}  cxd3 {[%clk 0:02:23]} 15. Bxd3 {[%clk 0:02:00]}  O-O {[%clk 0:02:20]} 16. Be3 {[%clk 0:01:57]}  d5 {[%clk 0:02:19]} 17. Nbd4 {[%clk 0:01:44]}  Ng4 {[%clk 0:02:13]} 18. Bxe4 {[%clk 0:01:38]}  Nxe3 {[%clk 0:02:08]} 19. Bxh7+ {[%clk 0:01:37]}  Kxh7 {[%clk 0:02:05]} 20. Rxe3 {[%clk 0:01:35]}  Kg8 {[%clk 0:02:03]} 21. Ne5 {[%clk 0:01:32]}  Bg5 {[%clk 0:01:31]} 22. Rh3 {[%clk 0:01:29]}  g6 {[%clk 0:01:19]} 23. Qc2 {[%clk 0:01:03]}  Qf6 {[%clk 0:01:06]} 24. Nd7 {[%clk 0:01:01]}  Qe7 {[%clk 0:01:03]} 25. Nxf8 {[%clk 0:01:00]}  Rxf8 {[%clk 0:01:03]} 26. Re1 {[%clk 0:00:59]}  e5 {[%clk 0:00:57]} 27. Nf3 {[%clk 0:00:42]}  Bf6 {[%clk 0:00:56]} 28. Qd2 {[%clk 0:00:34]}  Re8 {[%clk 0:00:33]} 29. Qh6 {[%clk 0:00:32]}  Bg7 {[%clk 0:00:32]} 30. Qh7+ {[%clk 0:00:29]}  Kf8 {[%clk 0:00:32]} 31. Nh4 {[%clk 0:00:22]}  Qg5 {[%clk 0:00:20]} 32. Rg3 {[%clk 0:00:17]}  Qh6 {[%clk 0:00:20]} 33. Qxh6 {[%clk 0:00:15]}  Bxh6 {[%clk 0:00:20]} 34. Nf3 {[%clk 0:00:13]}  Bf4 {[%clk 0:00:19]} 35. Rh3 {[%clk 0:00:13]}  e4 {[%clk 0:00:19]} 36. Rh8+ {[%clk 0:00:12]}  Ke7 {[%clk 0:00:19]} 37. Rxe8+ {[%clk 0:00:12]}  Kxe8 {[%clk 0:00:20]} 38. Nd4 {[%clk 0:00:13]}  Kd7 {[%clk 0:00:19]} 39. g3 {[%clk 0:00:11]}  Bc7 {[%clk 0:00:19]} 40. f3 {[%clk 0:00:10]}  f5 {[%clk 0:00:19]} 41. fxe4 {[%clk 0:00:10]}  dxe4 {[%clk 0:00:19]} 42. Kf2 {[%clk 0:00:08]}  Bb6 {[%clk 0:00:19]} 43. h3 {[%clk 0:00:07]}  g5 {[%clk 0:00:19]} 44. Ke2 {[%clk 0:00:06]}  f4 {[%clk 0:00:19]} 45. gxf4 {[%clk 0:00:05]}  gxf4 {[%clk 0:00:20]} 46. Kd2 {[%clk 0:00:05]}  e3+ {[%clk 0:00:19]} 47. Rxe3 {[%clk 0:00:05]}  fxe3+ {[%clk 0:00:19]} 48. Kxe3 {[%clk 0:00:05]}  Kd6 {[%clk 0:00:19]} 49. b4 {[%clk 0:00:05]}  Ke5 {[%clk 0:00:19]} 50. Kd3 {[%clk 0:00:05]}  Be4+ {[%clk 0:00:19]} 51. Ke3 {[%clk 0:00:05]}  Bg6 {[%clk 0:00:17]} 52. h4 {[%clk 0:00:05]}  Kd5 {[%clk 0:00:15]} 53. Kd2 {[%clk 0:00:05]}  Bd8 {[%clk 0:00:15]} 54. h5 {[%clk 0:00:04]}  Bxh5 {[%clk 0:00:15]} 55. Kc2 {[%clk 0:00:04]}  Bg6+ {[%clk 0:00:14]} 56. Kb3 {[%clk 0:00:04]}  Bd3 {[%clk 0:00:14]} 57. Nc2 {[%clk 0:00:04]}  Bc4+ {[%clk 0:00:14]} 58. Kb2 {[%clk 0:00:04]}  Ke4 {[%clk 0:00:15]} 59. Nd4 {[%clk 0:00:03]}  Bf6 {[%clk 0:00:14]} 60. Kc2 {[%clk 0:00:03]}  Kd5 {[%clk 0:00:13]} 61. Kd2 {[%clk 0:00:03]}  Bg5+ {[%clk 0:00:13]} 62. Kc2 {[%clk 0:00:03]}  Ke4 {[%clk 0:00:14]} 63. Kb2 {[%clk 0:00:03]}  Kd3 {[%clk 0:00:14]} 64. Nc2 {[%clk 0:00:03]}  Bf6 {[%clk 0:00:13]} 65. Nd4 {[%clk 0:00:03]}  Be5 {[%clk 0:00:13]} 66. b5 {[%clk 0:00:03]}  Bd5 {[%clk 0:00:13]} 67. b6 {[%clk 0:00:02]}  Kc4 {[%clk 0:00:10]} 68. Kc2 {[%clk 0:00:02]}  Kc5 {[%clk 0:00:10]} 69. Kd3 {[%clk 0:00:02]}  Kxb6 {[%clk 0:00:10]} 70. c4 {[%clk 0:00:02]}  Bb7 {[%clk 0:00:10]} 71. Nb3 {[%clk 0:00:02]}  Bc7 {[%clk 0:00:09]} 72. Nd4 {[%clk 0:00:01]}  Bc8 {[%clk 0:00:08]} 73. Nb3 {[%clk 0:00:01]}  Bf5+ {[%clk 0:00:08]} 74. Kc3 {[%clk 0:00:02]}  Be5+ {[%clk 0:00:08]} 75. Kb4 {[%clk 0:00:02]}  Bg3 {[%clk 0:00:08]} 76. c5+ {[%clk 0:00:02]}  Kc7 {[%clk 0:00:08]} 77. Nd4 {[%clk 0:00:02]}  Bd7 {[%clk 0:00:08]} 78. Nb5+ {[%clk 0:00:03]}  Kd8 {[%clk 0:00:07]} 79. Nd4 {[%clk 0:00:03]}  Be8 {[%clk 0:00:06]} 80. Nb5 {[%clk 0:00:03]}  Be1+ {[%clk 0:00:06]} 81. Kc4 {[%clk 0:00:02]}  Bf7+ {[%clk 0:00:06]} 82. Kd4 {[%clk 0:00:02]}  Bf2+ {[%clk 0:00:06]} 83. Ke5 {[%clk 0:00:02]}  Kd7 {[%clk 0:00:05]} 84. Nd6 {[%clk 0:00:03]}  Ba2 {[%clk 0:00:05]} 85. Ne4 {[%clk 0:00:03]}  Bg1 {[%clk 0:00:05]} 86. Kf5 {[%clk 0:00:03]}  Kc6 {[%clk 0:00:06]} 87. Kf4 {[%clk 0:00:03]}  Bb1 {[%clk 0:00:04]} 88. Kf3 {[%clk 0:00:04]}  Bd4 {[%clk 0:00:04]} 89. Nf2 {[%clk 0:00:04]}  Bxc5 {[%clk 0:00:03]} 90. Ne4 {[%clk 0:00:04]}  Bb6 {[%clk 0:00:03]} 91. Nf2 {[%clk 0:00:04]}  Kd5 {[%clk 0:00:03]} 92. Ng4 {[%clk 0:00:05]}  Bc7 {[%clk 0:00:03]} 93. Ne3+ {[%clk 0:00:04]}  Kd4 {[%clk 0:00:04]} 94. Ng4 {[%clk 0:00:04]}  Kd3 {[%clk 0:00:04]} 95. Nf2+ {[%clk 0:00:04]}  Kc4 {[%clk 0:00:04]} 96. Ne4 {[%clk 0:00:03]}  Bc2 {[%clk 0:00:04]} 97. Nd2+ {[%clk 0:00:04]}  Kd3 {[%clk 0:00:04]} 98. Nf1 {[%clk 0:00:04]}  Bd1+ {[%clk 0:00:05]} 99. Kf2 {[%clk 0:00:04]}  Bf4 {[%clk 0:00:05]} 100. Ng3 {[%clk 0:00:03]}  Bg4 {[%clk 0:00:05]} 101. Nf1 {[%clk 0:00:02]}  Be2 {[%clk 0:00:05]} 102. Ng3 {[%clk 0:00:02]}  Be3+ {[%clk 0:00:06]} 103. Kg2 {[%clk 0:00:02]}  Bg4 {[%clk 0:00:06]} 104. Nf1 {[%clk 0:00:02]}  Bf4 {[%clk 0:00:07]} 105. Nh2 {[%clk 0:00:02]}  Be6 {[%clk 0:00:06]} 106. Nf3 {[%clk 0:00:02]}  Bd5 {[%clk 0:00:06]} 107. Kf2 {[%clk 0:00:03]}  Be3+ {[%clk 0:00:07]} 108. Kg3 {[%clk 0:00:03]}  Ke4 {[%clk 0:00:07]} 109. Nh4 {[%clk 0:00:03]}  Bf4+ {[%clk 0:00:07]} 110. Kf2 {[%clk 0:00:03]}  Be6 {[%clk 0:00:06]} 111. Nf3 {[%clk 0:00:03]}  Bg4 {[%clk 0:00:07]} 112. Ng1 {[%clk 0:00:03]}  Be3+ {[%clk 0:00:07]} 113. Kg2 {[%clk 0:00:03]}  Kf4 {[%clk 0:00:07]} 114. Nh3+ {[%clk 0:00:03]}  Kf5 {[%clk 0:00:07]} 115. Nf2 {[%clk 0:00:03]}  Be2 {[%clk 0:00:07]} 116. Nh1 {[%clk 0:00:03]}  Kg4 {[%clk 0:00:07]} 117. Nf2+ {[%clk 0:00:03]}  Kh4 {[%clk 0:00:06]} 118. Nh1 {[%clk 0:00:04]}  Bg4 {[%clk 0:00:06]} 119. Nf2 {[%clk 0:00:04]}  Bh5 {[%clk 0:00:07]} 120. Nh1 {[%clk 0:00:04]}  Bf4 {[%clk 0:00:07]} 121. Nf2 {[%clk 0:00:04]}  Bg3 {[%clk 0:00:07]} 122. Nh1 {[%clk 0:00:04]}  Be1 {[%clk 0:00:07]} 123. Nf2 {[%clk 0:00:04]}  Be2 {[%clk 0:00:07]} 124. Nh3 {[%clk 0:00:04]}  Bg4 {[%clk 0:00:07]} 125. Nf2 {[%clk 0:00:03]}  Bd7 {[%clk 0:00:07]} 126. Nd3 {[%clk 0:00:03]}  Bc3 {[%clk 0:00:07]} 127. Nf2 {[%clk 0:00:03]}  Bc6+ {[%clk 0:00:07]} 128. Kf1 {[%clk 0:00:03]}  Kg3 {[%clk 0:00:06]} 129. Ke2 {[%clk 0:00:03]}  Bb5+ {[%clk 0:00:06]} 130. Ke3 {[%clk 0:00:03]}  Ba5 {[%clk 0:00:06]} 131. Ne4+ {[%clk 0:00:03]}  Kg4 {[%clk 0:00:07]} 132. Nf2+ {[%clk 0:00:03]}  Kf5 {[%clk 0:00:06]} 133. Nd3 {[%clk 0:00:04]}  Bb6+ {[%clk 0:00:06]} 134. Kd2 {[%clk 0:00:04]}  Ke4 {[%clk 0:00:07]} 135. Nb2 {[%clk 0:00:04]}  Kd4 {[%clk 0:00:07]} 136. Kc2 {[%clk 0:00:04]}  Bc5 {[%clk 0:00:07]} 137. Kb3 {[%clk 0:00:04]}  Be2 {[%clk 0:00:07]} 138. Kc2 {[%clk 0:00:04]}  Bb4 {[%clk 0:00:07]} 139. Kb3 {[%clk 0:00:04]}  Bd2 {[%clk 0:00:06]} 1/2-1/2


[Site "https://www.chess.com"]

[Event "Titled Tuesday Blitz November 29 Early 2022"]
[White "Amin-Erdene, Bayanmunkh"]
[Black "Manon-og, Ramon Jr."]
[WhiteFideId "4903161"]
[BlackFideId "5200776"]
[WhiteElo "1447"]
[BlackElo "2338"]
[Result "1-0"]
[Round "05"]
[TimeControl "180+1"]
[Date "2022.11.30"]
[WhiteClock "0:00:30"]
[BlackClock "0:00:02"]

1. d4 {[%clk 0:03:00]}  Nf6 {[%clk 0:02:39]} 2. Bf4 {[%clk 0:02:59]}  g6 {[%clk 0:02:39]} 3. e3 {[%clk 0:02:54]}  d6 {[%clk 0:02:39]} 4. Nf3 {[%clk 0:02:52]}  Bg7 {[%clk 0:02:39]} 5. h3 {[%clk 0:02:52]}  O-O {[%clk 0:02:37]} 6. Be2 {[%clk 0:02:52]}  Nfd7 {[%clk 0:02:37]} 7. O-O {[%clk 0:02:50]}  Nc6 {[%clk 0:02:37]} 8. Nbd2 {[%clk 0:02:48]}  e5 {[%clk 0:02:37]} 9. dxe5 {[%clk 0:02:43]}  Ndxe5 {[%clk 0:02:32]} 10. c3 {[%clk 0:02:40]}  Bf5 {[%clk 0:02:29]} 11. Nxe5 {[%clk 0:02:35]}  Nxe5 {[%clk 0:02:29]} 12. Nf3 {[%clk 0:02:34]}  Be4 {[%clk 0:02:24]} 13. Nxe5 {[%clk 0:02:30]}  dxe5 {[%clk 0:02:25]} 14. Bg3 {[%clk 0:02:28]}  Qxd1 {[%clk 0:02:21]} 15. Rfxd1 {[%clk 0:02:27]}  Rad8 {[%clk 0:02:22]} 16. Bc4 {[%clk 0:02:17]}  Bc2 {[%clk 0:02:13]} 17. Rxd8 {[%clk 0:02:01]}  Rxd8 {[%clk 0:02:13]} 18. Rc1 {[%clk 0:02:01]}  Rd2 {[%clk 0:02:08]} 19. f3 {[%clk 0:02:00]}  Bh6 {[%clk 0:02:08]} 20. Bf2 {[%clk 0:01:47]}  Ba4 {[%clk 0:01:58]} 21. b4 {[%clk 0:01:45]}  a6 {[%clk 0:01:50]} 22. Kf1 {[%clk 0:01:37]}  e4 {[%clk 0:01:41]} 23. fxe4 {[%clk 0:01:30]}  Bg7 {[%clk 0:01:41]} 24. Be1 {[%clk 0:01:27]}  Rb2 {[%clk 0:01:34]} 25. Bg3 {[%clk 0:01:25]}  c6 {[%clk 0:01:24]} 26. e5 {[%clk 0:01:25]}  Bc2 {[%clk 0:01:09]} 27. e6 {[%clk 0:01:21]}  fxe6 {[%clk 0:01:00]} 28. Bxe6+ {[%clk 0:01:21]}  Kf8 {[%clk 0:01:01]} 29. Bd6+ {[%clk 0:01:19]}  Ke8 {[%clk 0:01:01]} 30. c4 {[%clk 0:01:17]}  Rxa2 {[%clk 0:00:50]} 31. b5 {[%clk 0:01:10]}  Bc3 {[%clk 0:00:46]} 32. Kg1 {[%clk 0:01:04]}  Bd2 {[%clk 0:00:45]} 33. Rf1 {[%clk 0:01:04]}  Bxe3+ {[%clk 0:00:44]} 34. Kh2 {[%clk 0:00:57]}  Bh6 {[%clk 0:00:44]} 35. bxc6 {[%clk 0:00:43]}  bxc6 {[%clk 0:00:42]} 36. c5 {[%clk 0:00:43]}  Rb2 {[%clk 0:00:39]} 37. Rf2 {[%clk 0:00:40]}  a5 {[%clk 0:00:22]} 38. Be5 {[%clk 0:00:38]}  Be3 {[%clk 0:00:21]} 39. Re2 {[%clk 0:00:36]}  Rb5 {[%clk 0:00:02]} 40. Rxe3 {[%clk 0:00:30]}  a4 {[%clk 0:00:02]} 41. Bd6 {[%clk 0:00:30]} 1-0


[Site "https://www.chess.com"]

[Event "Titled Tuesday Blitz November 29 Early 2022"]
[White "Bacrot, Etienne"]
[Black "Gabdrakhmanov, Azat"]
[WhiteFideId "605506"]
[BlackFideId "34189197"]
[WhiteElo "2666"]
[BlackElo "2254"]
[Result "1-0"]
[Round "05"]
[TimeControl "180+1"]
[Date "2022.11.30"]
[WhiteClock "0:00:07"]
[BlackClock "0:00:01"]

1. e4 {[%clk 0:03:00]}  c5 {[%clk 0:02:51]} 2. Nf3 {[%clk 0:03:01]}  e6 {[%clk 0:02:51]} 3. b3 {[%clk 0:03:00]}  d6 {[%clk 0:02:51]} 4. Bb2 {[%clk 0:03:01]}  e5 {[%clk 0:02:51]} 5. c3 {[%clk 0:02:56]}  Nf6 {[%clk 0:02:49]} 6. Bd3 {[%clk 0:02:49]}  Be7 {[%clk 0:02:48]} 7. Bc2 {[%clk 0:02:49]}  O-O {[%clk 0:02:49]} 8. d4 {[%clk 0:02:49]}  d5 {[%clk 0:02:22]} 9. dxe5 {[%clk 0:02:35]}  Nxe4 {[%clk 0:02:22]} 10. c4 {[%clk 0:02:21]}  Qa5+ {[%clk 0:01:49]} 11. Ke2 {[%clk 0:02:06]}  Bg4 {[%clk 0:01:27]} 12. cxd5 {[%clk 0:01:47]}  Ng5 {[%clk 0:01:26]} 13. Nd2 {[%clk 0:01:29]}  Rd8 {[%clk 0:01:18]} 14. h3 {[%clk 0:01:06]}  Nxf3 {[%clk 0:00:52]} 15. Nxf3 {[%clk 0:01:06]}  Bxf3+ {[%clk 0:00:52]} 16. Kxf3 {[%clk 0:01:06]}  Nc6 {[%clk 0:00:48]} 17. Bxh7+ {[%clk 0:00:58]}  Kxh7 {[%clk 0:00:38]} 18. Qc2+ {[%clk 0:00:58]}  Kg8 {[%clk 0:00:37]} 19. dxc6 {[%clk 0:00:58]}  bxc6 {[%clk 0:00:36]} 20. Rhd1 {[%clk 0:00:57]}  Rd5 {[%clk 0:00:35]} 21. Rxd5 {[%clk 0:00:47]}  cxd5 {[%clk 0:00:35]} 22. Rd1 {[%clk 0:00:47]}  d4 {[%clk 0:00:32]} 23. Bc1 {[%clk 0:00:40]}  Re8 {[%clk 0:00:26]} 24. Bf4 {[%clk 0:00:37]}  Bd8 {[%clk 0:00:15]} 25. Rc1 {[%clk 0:00:18]}  Bb6 {[%clk 0:00:11]} 26. g3 {[%clk 0:00:15]}  Qa6 {[%clk 0:00:09]} 27. Kg2 {[%clk 0:00:14]}  Qb7+ {[%clk 0:00:10]} 28. Kg1 {[%clk 0:00:15]}  Qf3 {[%clk 0:00:10]} 29. h4 {[%clk 0:00:15]}  d3 {[%clk 0:00:09]} 30. Qd1 {[%clk 0:00:14]}  Qd5 {[%clk 0:00:08]} 31. Qd2 {[%clk 0:00:14]}  Qe4 {[%clk 0:00:07]} 32. Re1 {[%clk 0:00:14]}  Qd5 {[%clk 0:00:07]} 33. h5 {[%clk 0:00:14]}  Rd8 {[%clk 0:00:07]} 34. h6 {[%clk 0:00:14]}  Qf3 {[%clk 0:00:06]} 35. hxg7 {[%clk 0:00:13]}  c4 {[%clk 0:00:06]} 36. Be3 {[%clk 0:00:09]}  c3 {[%clk 0:00:03]} 37. Qxc3 {[%clk 0:00:08]}  Bxe3 {[%clk 0:00:03]} 38. Rxe3 {[%clk 0:00:08]}  Qd1+ {[%clk 0:00:02]} 39. Re1 {[%clk 0:00:07]}  Qf3 {[%clk 0:00:01]} 40. Qd2 {[%clk 0:00:07]}  Qg4 {[%clk 0:00:01]} 41. Qh6 {[%clk 0:00:07]} 1-0


[Site "https://www.chess.com"]

[Event "Titled Tuesday Blitz November 29 Early 2022"]
[White "Barash, Anton"]
[Black "Iinuma, Paul Y"]
[WhiteFideId "30935229"]
[BlackFideId "2031809"]
[WhiteElo "2313"]
[BlackElo "2066"]
[Result "1-0"]
[Round "05"]
[TimeControl "180+1"]
[Date "2022.11.30"]
[WhiteClock "0:00:39"]
[BlackClock "0:00:07"]

1. e4 {[%clk 0:03:00]}  g6 {[%clk 0:02:59]} 2. d4 {[%clk 0:02:59]}  Bg7 {[%clk 0:03:00]} 3. Nc3 {[%clk 0:03:00]}  d6 {[%clk 0:03:00]} 4. f4 {[%clk 0:03:00]}  Nd7 {[%clk 0:03:00]} 5. Nf3 {[%clk 0:02:59]}  c5 {[%clk 0:02:54]} 6. Be3 {[%clk 0:02:42]}  cxd4 {[%clk 0:02:53]} 7. Bxd4 {[%clk 0:02:39]}  e5 {[%clk 0:02:00]} 8. fxe5 {[%clk 0:02:31]}  dxe5 {[%clk 0:02:00]} 9. Be3 {[%clk 0:02:31]}  Ne7 {[%clk 0:02:00]} 10. Bc4 {[%clk 0:02:27]}  O-O {[%clk 0:02:00]} 11. O-O {[%clk 0:02:28]}  a6 {[%clk 0:01:57]} 12. Bb3 {[%clk 0:02:27]}  h6 {[%clk 0:01:55]} 13. Qd2 {[%clk 0:02:17]}  Kh7 {[%clk 0:01:54]} 14. Rad1 {[%clk 0:02:16]}  Qc7 {[%clk 0:01:54]} 15. Nd5 {[%clk 0:01:58]}  Nxd5 {[%clk 0:01:53]} 16. Qxd5 {[%clk 0:01:59]}  g5 {[%clk 0:00:49]} 17. Bxg5 {[%clk 0:01:48]}  hxg5 {[%clk 0:00:48]} 18. Nxg5+ {[%clk 0:01:49]}  Kg6 {[%clk 0:00:46]} 19. Rxf7 {[%clk 0:01:36]}  Qc5+ {[%clk 0:00:36]} 20. Qxc5 {[%clk 0:01:25]}  Nxc5 {[%clk 0:00:36]} 21. Rd6+ {[%clk 0:01:23]}  Kxg5 {[%clk 0:00:32]} 22. Rxg7+ {[%clk 0:01:23]}  Kf4 {[%clk 0:00:32]} 23. Bd5 {[%clk 0:01:23]}  Nxe4 {[%clk 0:00:23]} 24. Rh6 {[%clk 0:01:12]}  Ke3 {[%clk 0:00:12]} 25. Rh3+ {[%clk 0:00:49]}  Kd4 {[%clk 0:00:12]} 26. Rd3+ {[%clk 0:00:41]}  Kc5 {[%clk 0:00:12]} 27. Bxe4 {[%clk 0:00:41]}  Be6 {[%clk 0:00:09]} 28. Rc7+ {[%clk 0:00:39]}  Kb6 {[%clk 0:00:08]} 29. Rxb7+ {[%clk 0:00:40]}  Ka5 {[%clk 0:00:07]} 30. Ra3# {[%clk 0:00:39]} 1-0


[Site "https://www.chess.com"]

[Event "Titled Tuesday Blitz November 29 Early 2022"]
[White "Barria Zuniga, Daniel"]
[Black "Gurevich, Dmitry"]
[WhiteFideId "3400816"]
[BlackFideId "2000407"]
[WhiteElo "2414"]
[BlackElo "2506"]
[Result "1-0"]
[Round "05"]
[TimeControl "180+1"]
[Date "2022.11.30"]
[WhiteClock "0:00:20"]
[BlackClock "0:00:12"]

1. c4 {[%clk 0:02:46]}  e6 {[%clk 0:02:55]} 2. g3 {[%clk 0:02:41]}  d5 {[%clk 0:02:53]} 3. Bg2 {[%clk 0:02:41]}  Nf6 {[%clk 0:02:47]} 4. Nf3 {[%clk 0:02:41]}  dxc4 {[%clk 0:02:46]} 5. O-O {[%clk 0:02:40]}  Nbd7 {[%clk 0:02:43]} 6. Na3 {[%clk 0:02:34]}  Bxa3 {[%clk 0:02:41]} 7. bxa3 {[%clk 0:02:34]}  O-O {[%clk 0:02:38]} 8. a4 {[%clk 0:02:34]}  a5 {[%clk 0:02:37]} 9. Qc2 {[%clk 0:02:28]}  Nb6 {[%clk 0:02:36]} 10. Ne5 {[%clk 0:02:24]}  Bd7 {[%clk 0:02:35]} 11. Nxd7 {[%clk 0:02:01]}  Qxd7 {[%clk 0:02:31]} 12. Bxb7 {[%clk 0:02:01]}  Rab8 {[%clk 0:02:22]} 13. Bf3 {[%clk 0:02:01]}  Qxa4 {[%clk 0:02:13]} 14. Qxa4 {[%clk 0:01:59]}  Nxa4 {[%clk 0:02:12]} 15. Ba3 {[%clk 0:02:00]}  Rfd8 {[%clk 0:02:09]} 16. Rfc1 {[%clk 0:01:57]}  c3 {[%clk 0:02:02]} 17. dxc3 {[%clk 0:01:48]}  Nd5 {[%clk 0:02:00]} 18. Rc2 {[%clk 0:01:33]}  Ndxc3 {[%clk 0:01:37]} 19. Rac1 {[%clk 0:01:29]}  Rb1 {[%clk 0:01:29]} 20. Rxb1 {[%clk 0:01:19]}  Nxb1 {[%clk 0:01:27]} 21. Be7 {[%clk 0:01:18]}  Rb8 {[%clk 0:01:18]} 22. Rxc7 {[%clk 0:01:15]}  Nbc3 {[%clk 0:01:14]} 23. Ra7 {[%clk 0:00:51]}  h6 {[%clk 0:01:01]} 24. Rxa5 {[%clk 0:00:48]}  Rb2 {[%clk 0:00:59]} 25. a3 {[%clk 0:00:46]}  Nb6 {[%clk 0:00:45]} 26. Bc5 {[%clk 0:00:37]}  Nc4 {[%clk 0:00:38]} 27. Ra8+ {[%clk 0:00:34]}  Kh7 {[%clk 0:00:37]} 28. a4 {[%clk 0:00:28]}  Nxe2+ {[%clk 0:00:35]} 29. Bxe2 {[%clk 0:00:27]}  Rxe2 {[%clk 0:00:34]} 30. a5 {[%clk 0:00:27]}  Ra2 {[%clk 0:00:30]} 31. a6 {[%clk 0:00:26]}  Nd2 {[%clk 0:00:30]} 32. a7 {[%clk 0:00:23]}  Nf3+ {[%clk 0:00:12]} 33. Kg2 {[%clk 0:00:23]}  Ne1+ {[%clk 0:00:12]} 34. Kf1 {[%clk 0:00:20]} 1-0


[Site "https://www.chess.com"]

[Event "Titled Tuesday Blitz November 29 Early 2022"]
[White "Bogaudinov, Rushan"]
[Black "Zaloznyy, Mike"]
[WhiteFideId "4129288"]
[BlackFideId "2023075"]
[WhiteElo "1997"]
[BlackElo "2126"]
[Result "1-0"]
[Round "05"]
[TimeControl "180+1"]
[Date "2022.11.30"]
[WhiteClock "0:01:16"]
[BlackClock "0:00:02"]

1. a3 {[%clk 0:02:59]}  d5 {[%clk 0:02:52]} 2. e3 {[%clk 0:02:59]}  Nf6 {[%clk 0:02:50]} 3. Nf3 {[%clk 0:02:59]}  e6 {[%clk 0:02:45]} 4. d4 {[%clk 0:02:59]}  Be7 {[%clk 0:02:44]} 5. c4 {[%clk 0:02:58]}  O-O {[%clk 0:02:43]} 6. Nc3 {[%clk 0:02:58]}  c5 {[%clk 0:02:37]} 7. dxc5 {[%clk 0:02:58]}  dxc4 {[%clk 0:02:30]} 8. Qxd8 {[%clk 0:02:56]}  Rxd8 {[%clk 0:02:29]} 9. Bxc4 {[%clk 0:02:57]}  Bxc5 {[%clk 0:02:26]} 10. b4 {[%clk 0:02:57]}  Be7 {[%clk 0:02:25]} 11. Bb2 {[%clk 0:02:50]}  a5 {[%clk 0:02:24]} 12. b5 {[%clk 0:02:49]}  Nbd7 {[%clk 0:02:23]} 13. O-O {[%clk 0:02:44]}  Nc5 {[%clk 0:02:20]} 14. Rfd1 {[%clk 0:02:36]}  Bd7 {[%clk 0:02:19]} 15. Ne5 {[%clk 0:02:18]}  Be8 {[%clk 0:02:18]} 16. f3 {[%clk 0:02:18]}  a4 {[%clk 0:02:03]} 17. Kf2 {[%clk 0:02:11]}  Rxd1 {[%clk 0:01:58]} 18. Rxd1 {[%clk 0:02:10]}  Rd8 {[%clk 0:01:58]} 19. Rxd8 {[%clk 0:02:10]}  Bxd8 {[%clk 0:01:57]} 20. g4 {[%clk 0:02:06]}  Bc7 {[%clk 0:01:56]} 21. Nd3 {[%clk 0:02:06]}  Nxd3+ {[%clk 0:01:41]} 22. Bxd3 {[%clk 0:02:07]}  Bxh2 {[%clk 0:01:40]} 23. Nxa4 {[%clk 0:01:57]}  Bd6 {[%clk 0:01:24]} 24. Nc3 {[%clk 0:01:56]}  Nd7 {[%clk 0:01:12]} 25. Ne4 {[%clk 0:01:54]}  Be7 {[%clk 0:01:05]} 26. a4 {[%clk 0:01:53]}  f5 {[%clk 0:00:55]} 27. gxf5 {[%clk 0:01:52]}  exf5 {[%clk 0:00:56]} 28. Ng3 {[%clk 0:01:50]}  g6 {[%clk 0:00:55]} 29. e4 {[%clk 0:01:40]}  Nc5 {[%clk 0:00:54]} 30. Bc2 {[%clk 0:01:41]}  f4 {[%clk 0:00:47]} 31. Ne2 {[%clk 0:01:39]}  Bh4+ {[%clk 0:00:44]} 32. Kg2 {[%clk 0:01:38]}  g5 {[%clk 0:00:36]} 33. Bc3 {[%clk 0:01:34]}  Bf7 {[%clk 0:00:29]} 34. Nd4 {[%clk 0:01:33]}  h5 {[%clk 0:00:23]} 35. Nf5 {[%clk 0:01:28]}  Bb3 {[%clk 0:00:16]} 36. Bxb3+ {[%clk 0:01:27]}  Nxb3 {[%clk 0:00:16]} 37. Nxh4 {[%clk 0:01:27]}  gxh4 {[%clk 0:00:17]} 38. a5 {[%clk 0:01:25]}  Nc5 {[%clk 0:00:05]} 39. Bd2 {[%clk 0:01:18]}  Nb3 {[%clk 0:00:02]} 40. a6 {[%clk 0:01:16]} 1-0


[Site "https://www.chess.com"]

[Event "Titled Tuesday Blitz November 29 Early 2022"]
[White "Bortnyk, Olexandr"]
[Black "Yeremyan, Alen"]
[WhiteFideId "14120828"]
[BlackFideId "13308998"]
[WhiteElo "3030"]
[BlackElo "2688"]
[Result "1-0"]
[Round "05"]
[TimeControl "180+1"]
[Date "2022.11.30"]
[WhiteClock "0:01:02"]
[BlackClock "0:00:02"]

1. e4 {[%clk 0:02:53]}  c5 {[%clk 0:02:50]} 2. c3 {[%clk 0:02:52]}  Nf6 {[%clk 0:02:48]} 3. e5 {[%clk 0:02:52]}  Nd5 {[%clk 0:02:49]} 4. d4 {[%clk 0:02:48]}  cxd4 {[%clk 0:02:39]} 5. Nf3 {[%clk 0:02:48]}  Nc6 {[%clk 0:02:37]} 6. cxd4 {[%clk 0:02:48]}  d6 {[%clk 0:02:35]} 7. Bc4 {[%clk 0:02:48]}  e6 {[%clk 0:02:21]} 8. O-O {[%clk 0:02:47]}  Be7 {[%clk 0:02:13]} 9. Qe2 {[%clk 0:02:47]}  O-O {[%clk 0:02:12]} 10. Rd1 {[%clk 0:02:47]}  a6 {[%clk 0:02:09]} 11. Qe4 {[%clk 0:02:41]}  Ndb4 {[%clk 0:01:48]} 12. Bb3 {[%clk 0:02:20]}  dxe5 {[%clk 0:01:17]} 13. dxe5 {[%clk 0:02:17]}  Qc7 {[%clk 0:01:17]} 14. Nc3 {[%clk 0:02:12]}  Rd8 {[%clk 0:01:04]} 15. Bg5 {[%clk 0:02:01]}  a5 {[%clk 0:00:42]} 16. Nb5 {[%clk 0:01:49]}  Qb6 {[%clk 0:00:38]} 17. Nd6 {[%clk 0:01:41]}  h6 {[%clk 0:00:29]} 18. Be3 {[%clk 0:01:29]}  Qc7 {[%clk 0:00:24]} 19. Nb5 {[%clk 0:01:25]}  Qb8 {[%clk 0:00:20]} 20. a4 {[%clk 0:01:21]}  Nd5 {[%clk 0:00:20]} 21. Bc2 {[%clk 0:01:20]}  f5 {[%clk 0:00:14]} 22. exf6 {[%clk 0:01:21]}  Nxf6 {[%clk 0:00:14]} 23. Qg6 {[%clk 0:01:20]}  Kf8 {[%clk 0:00:10]} 24. Bxh6 {[%clk 0:01:18]}  gxh6 {[%clk 0:00:06]} 25. Qxh6+ {[%clk 0:01:18]}  Kg8 {[%clk 0:00:06]} 26. Qg6+ {[%clk 0:01:19]}  Kf8 {[%clk 0:00:07]} 27. Qh6+ {[%clk 0:01:05]}  Kg8 {[%clk 0:00:05]} 28. Ng5 {[%clk 0:01:06]}  Ne5 {[%clk 0:00:04]} 29. Bh7+ {[%clk 0:01:04]}  Kh8 {[%clk 0:00:02]} 30. Rxd8+ {[%clk 0:01:02]} 1-0


[Site "https://www.chess.com"]